[Event "Klatovy Open-B 2024"]
[Site "Klatovy"]
[Date "2024.07.04"]
[Round "6.1"]
[White "Slansky, Jachym"]
[Black "Kaderabek, Jiri"]
[Result "0-1"]
[ECO "B06"]
[WhiteElo "1665"]
[BlackElo "1984"]
[Annotator "RC"]
[PlyCount "72"]
[EventDate "2024.06.21"]
[EventType "swiss"]
[EventCountry "CZE"]
[SourceTitle "playchess.com"]
[Source "ChessBase"]
[SourceQuality "1"]
[TimeControl "40/7200:0"]

1. e4 {[%emt 0:00:00]} g6 {[%emt 0:00:00]} 2. d4 {[%emt 0:00:00]} Bg7 {[%emt 0:00:05]} 3. Nc3 {[%emt 0:00:00]} c5 {[%emt 0:01:20]} 4. Be3 {[%emt 0:09:39]} Qa5 {[%emt 0:02:33]} 5. Be2 {[%emt 0:13:12]} Nf6 {[%emt 0:05:49]} 6. Qd2 {[%emt 0:01:37]} cxd4 {[%emt 0:02:42]} 7. Qxd4 {[%emt 0:04:14]} O-O {[%emt 0:16:26]} 8. Qc5 {[%emt 0:12:14]} Qxc5 {[%emt 0:03:26]} 9. Bxc5 {[%emt 0:00:00]} d6 {[%emt 0:00:00]} 10. Be3 {[%emt 0:01:16]} Nc6 {[%emt 0:01:38]} 11. h3 {[%emt 0:05:12]} Be6 {[%emt 0:04:01]} 12. f4 {[%emt 0:10:42]} Rfc8 {[%emt 0:01:11]} 13. g4 {[%emt 0:01:21]} Nb4 {[%emt 0:06:23]} 14. Bd3 {[%emt 0:04:21]} Nxg4 {[%emt 0:04:56]} 15. hxg4 {[%emt 0:01:58]} Nxd3+ {[%emt 0:01:35]} 16. cxd3 {[%emt 0:00:29]} Rxc3 {[%emt 0:00:00]} 17. Kd2 {[%emt 0:03:10]} Rc7 {[%emt 0:00:00]} 18. Ne2 {[%emt 0:00:00]} Bxg4 {[%emt 0:00:00]} 19. f5 {[%emt 0:00:00]} Bxe2 {[%emt 0:00:00]} 20. Kxe2 {[%emt 0:00:00]} d5 {[%emt 0:05:36]} 21. Rh3 {[%emt 0:11:08]} dxe4 {[%emt 0:00:00]} 22. dxe4 {[%emt 0:00:00]} Rc6 {[%emt 0:03:25]} 23. Bg5 {[%emt 0:06:12]} Rac8 {[%emt 0:11:33]} 24. Bxe7 {[%emt 0:02:06]} Re8 {[%emt 0:00:50]} 25. Ba3 {[%emt 0:04:03]} Bxb2 {[%emt 0:01:57]} 26. Rb1 {[%emt 0:00:42]} Bxa3 {[%emt 0:00:05]} 27. Rxa3 {[%emt 0:00:00]} Rxe4+ {[%emt 0:00:53]} 28. Kf3 {[%emt 0:00:47]} Re7 {[%emt 0:03:14]} 29. Rxa7 {[%emt 0:02:12]} Rf6 {[%emt 0:01:59]} 30. a4 {[%emt 0:02:44]} Rxf5+ {[%emt 0:00:00]} 31. Kg3 {[%emt 0:01:03]} Kg7 {[%emt 0:02:49]} 32. a5 {[%emt 0:03:04]} h5 {[%emt 0:02:21]} 33. Rb3 {[%emt 0:00:29]} Ree5 {[%emt 0:01:14]} 34. Ra3 {[%emt 0:01:26]} Rb5 {[%emt 0:00:00]} 35. Kh3 {[%emt 0:01:40]} Rf6 {[%emt 0:00:00]} 36. a6 {[%emt 0:02:55]} Rxa6 {[%emt 0:00:00]} 0-1

[Event "Klatovy Open-B 2024"]
[Site "Klatovy"]
[Date "2024.07.04"]
[Round "6.2"]
[White "Masek, Jan"]
[Black "Vojta, Radek"]
[Result "1-0"]
[ECO "B12"]
[WhiteElo "1839"]
[BlackElo "1693"]
[Annotator "NA RC"]
[PlyCount "81"]
[EventDate "2024.06.21"]
[EventType "swiss"]
[EventCountry "CZE"]
[SourceTitle "playchess.com"]
[Source "ChessBase"]
[SourceQuality "1"]
[TimeControl "40/7200:0"]

1. e4 {[%emt 0:00:00]} c6 {[%emt 0:00:00]} 2. d4 {[%emt 0:00:00]} d5 {[%emt 0:00:00]} 3. e5 {[%emt 0:00:00]} c5 {[%emt 0:00:00]} 4. dxc5 {[%emt 0:00:00]} e6 {[%emt 0:00:00]} 5. a3 {[%emt 0:00:00]} Nc6 {[%emt 0:00:00]} 6. Nf3 {[%emt 0:00:00]} Bxc5 {[%emt 0:00:00]} 7. Bd3 {[%emt 0:00:00]} Nge7 {[%emt 0:00:00]} 8. O-O {[%emt 0:00:00]} Ng6 {[%emt 0:00:00]} 9. Re1 {[%emt 0:00:00]} Bd7 {[%emt 0:01:34]} 10. b4 {[%emt 0:00:00]} Bb6 {[%emt 0:00:00]} 11. g3 {[%emt 0:00:00]} Nd4 {[%emt 0:02:29]} 12. Nbd2 {[%emt 0:00:00]} O-O {[%emt 0:00:53]} 13. Bb2 {[%emt 0:00:00]} Nxf3+ {[%emt 0:00:00]} 14. Qxf3 {[%emt 0:00:00]} f6 {[%emt 0:02:02]} 15. Qh5 {[%emt 0:03:26]} fxe5 {[%emt 0:06:44]} 16. Bxg6 {[%emt 0:02:07]} hxg6 {[%emt 0:00:01]} 17. Qxe5 {[%emt 0:00:00]} Qe7 {[%emt 0:05:47]} 18. Bd4 {[%emt 0:01:01]} Bxd4 {[%emt 0:07:44]} 19. Qxd4 {[%emt 0:00:00]} Qf6 {[%emt 0:00:26]} 20. Re5 {[%emt 0:03:31]} a5 {[%emt 0:07:19]} 21. Rae1 {[%emt 0:00:06]} axb4 {[%emt 0:02:44]} 22. axb4 {[%emt 0:01:01]} Ra2 {[%emt 0:00:00]} 23. c4 {[%emt 0:01:54]} dxc4 {[%emt 0:04:30]} 24. Ne4 {[%emt 0:06:53]} Qf7 {[%emt 0:03:43]} 25. f4 {[%emt 0:02:04]} b5 {[%emt 0:16:22]} 26. Qd6 {[%emt 0:12:51]} Re8 {[%emt 0:11:26]} 27. Nc5 {[%emt 0:50:03]} Bc8 {[%emt 0:01:28]} 28. Rd1 {[%emt 0:07:50]} Rb2 {[%emt 0:07:14]} 29. Ne4 {[%emt 0:04:06]} Qa7+ {[%emt 0:03:01]} 30. Qd4 {[%emt 0:02:49]} Qxd4+ {[%emt 0:00:00]} 31. Rxd4 {[%emt 0:00:00]} Rxb4 {[%emt 0:00:00]} 32. Nd6 {[%emt 0:00:51]} Bd7 {[%emt 0:09:45]} 33. Nxe8 {[%emt 0:00:00]} Bxe8 {[%emt 0:00:00]} 34. Rxe6 {[%emt 0:00:00]} Kf7 {[%emt 0:00:00]} 35. Rde4 {[%emt 0:02:49]} Rb1+ {[%emt 0:00:00]} 36. Kf2 {[%emt 0:00:00]} c3 {[%emt 0:00:00]} 37. Rxe8 {[%emt 0:00:00]} c2 {[%emt 0:00:00]} 38. R4e7+ {[%emt 0:03:16]} Kf6 {[%emt 0:00:00]} 39. Re6+ {[%emt 0:00:00]} Kf5 {[%emt 0:00:00]} 40. Re5+ {[%emt 0:00:00]} Kf6 {[%emt 0:00:40]} 41. Rf8# {[%emt 2:13:22]} 1-0

[Event "Klatovy Open-B 2024"]
[Site "Klatovy"]
[Date "2024.07.04"]
[Round "6.4"]
[White "Beran, Jakub"]
[Black "Kusova, Nikola"]
[Result "1-0"]
[ECO "D32"]
[WhiteElo "1791"]
[BlackElo "1696"]
[Annotator "NA RC"]
[PlyCount "63"]
[EventDate "2024.06.21"]
[EventType "swiss"]
[EventCountry "CZE"]
[SourceTitle "playchess.com"]
[Source "ChessBase"]
[SourceQuality "1"]
[TimeControl "40/7200:0"]

1. c4 {[%emt 0:00:00]} e6 {[%emt 0:00:00]} 2. Nc3 {[%emt 0:00:00]} d5 {[%emt 0:00:00]} 3. d4 {[%emt 0:00:00]} c5 {[%emt 0:00:00]} 4. cxd5 {[%emt 0:00:00]} exd5 {[%emt 0:00:00]} 5. Nf3 {[%emt 0:00:00]} Nc6 {[%emt 0:00:00]} 6. Bg5 {[%emt 0:01:04]} Be7 {[%emt 0:01:44]} 7. Bxe7 {[%emt 0:00:12]} Ngxe7 {[%emt 0:00:00]} 8. e3 {[%emt 0:02:07]} cxd4 {[%emt 0:02:46]} 9. Nxd4 {[%emt 0:00:48]} Ne5 {[%emt 0:07:50]} 10. Bb5+ {[%emt 0:04:08]} Bd7 {[%emt 0:00:20]} 11. O-O {[%emt 0:01:20]} O-O {[%emt 0:03:00]} 12. Qb3 {[%emt 0:06:09]} Bxb5 {[%emt 0:04:51]} 13. Qxb5 {[%emt 0:01:17]} Qd6 {[%emt 0:00:11]} 14. Rad1 {[%emt 0:06:24]} a6 {[%emt 0:04:12]} 15. Qe2 {[%emt 0:00:20]} Rfd8 {[%emt 0:07:24]} 16. Nf3 {[%emt 0:03:02]} Nxf3+ {[%emt 0:02:33]} 17. Qxf3 {[%emt 0:01:41]} Qe6 {[%emt 0:06:40]} 18. Rd4 {[%emt 0:03:44]} Rac8 {[%emt 0:01:21]} 19. Rfd1 {[%emt 0:00:00]} b5 {[%emt 0:02:42]} 20. h3 {[%emt 0:01:23]} Rc4 {[%emt 0:02:16]} 21. Nxd5 {[%emt 0:07:48]} Rxd4 {[%emt 0:05:43]} 22. Nxe7+ {[%emt 0:00:00]} Qxe7 {[%emt 0:01:55]} 23. Rxd4 {[%emt 0:00:00]} Rc8 {[%emt 0:00:28]} 24. Qd5 {[%emt 0:01:05]} Kf8 {[%emt 0:02:08]} 25. b3 {[%emt 0:01:53]} Rc1+ {[%emt 0:01:10]} 26. Kh2 {[%emt 0:02:33]} Qc7+ {[%emt 0:04:48]} 27. g3 {[%emt 0:05:55]} g6 {[%emt 0:02:54]} 28. Qa8+ {[%emt 0:02:54]} Kg7 {[%emt 0:01:28]} 29. Qxa6 {[%emt 0:00:00]} Qc2 {[%emt 0:00:52]} 30. Rf4 {[%emt 0:01:04]} Qc3 {[%emt 0:07:06]} 31. Qb7 {[%emt 0:01:24]} Qc7 {[%emt 0:02:27]} 32. Qxb5 {[%emt 1:01:45]} 1-0

[Event "Klatovy Open-B 2024"]
[Site "Klatovy"]
[Date "2024.07.04"]
[Round "6.5"]
[White "Rudlof, Jan"]
[Black "Bukvaj, Jan"]
[Result "1/2-1/2"]
[ECO "E67"]
[WhiteElo "1799"]
[BlackElo "1652"]
[Annotator "NA RC"]
[PlyCount "37"]
[EventDate "2024.06.21"]
[EventType "swiss"]
[EventCountry "CZE"]
[SourceTitle "playchess.com"]
[Source "ChessBase"]
[SourceQuality "1"]
[TimeControl "40/7200:0"]

1. d4 {[%emt 0:08:01]} Nf6 {[%emt 0:00:00]} 2. c4 {[%emt 0:00:00]} g6 {[%emt 0:00:00]} 3. g3 {[%emt 0:00:00]} Bg7 {[%emt 0:00:00]} 4. Bg2 {[%emt 0:00:00]} d6 {[%emt 0:00:00]} 5. Nc3 {[%emt 0:00:00]} O-O {[%emt 0:00:00]} 6. Nf3 {[%emt 0:00:00]} Nbd7 {[%emt 0:00:00]} 7. O-O {[%emt 0:04:31]} Re8 {[%emt 0:00:48]} 8. e4 {[%emt 0:04:13]} e5 {[%emt 0:02:38]} 9. dxe5 {[%emt 0:15:46]} dxe5 {[%emt 0:05:21]} 10. Qc2 {[%emt 0:07:29]} c6 {[%emt 0:05:42]} 11. b3 {[%emt 0:05:32]} Qc7 {[%emt 0:03:37]} 12. Ba3 {[%emt 0:09:09]} Bf8 {[%emt 0:10:14]} 13. Bxf8 {[%emt 0:00:16]} Kxf8 {[%emt 0:00:59]} 14. Qd2 {[%emt 0:09:23]} Kg7 {[%emt 0:05:44]} 15. Rfd1 {[%emt 0:02:23]} Nc5 {[%emt 0:05:52]} 16. Qe3 {[%emt 0:01:21]} Ne6 {[%emt 0:03:10]} 17. h3 {[%emt 0:01:54]} b6 {[%emt 0:04:11]} 18. Rd2 {[%emt 0:02:12]} Bb7 {[%emt 0:07:42]} 19. Rad1 {[%emt 0:01:19]} 1/2-1/2

[Event "Klatovy Open-B 2024"]
[Site "Klatovy"]
[Date "2024.07.04"]
[Round "6.6"]
[White "Mascak, Milan"]
[Black "Koper, Stefan"]
[Result "0-1"]
[ECO "A06"]
[WhiteElo "1662"]
[BlackElo "1845"]
[Annotator "NA RC"]
[PlyCount "100"]
[EventDate "2024.06.21"]
[EventType "swiss"]
[EventCountry "CZE"]
[SourceTitle "playchess.com"]
[Source "ChessBase"]
[SourceQuality "1"]
[TimeControl "40/7200:0"]

1. Nf3 {[%emt 0:00:00]} d5 {[%emt 0:00:00]} 2. b3 {[%emt 0:00:00]} c5 {[%emt 0:00:00]} 3. Bb2 {[%emt 0:00:00]} Nc6 {[%emt 0:00:00]} 4. e3 {[%emt 0:00:00]} Bg4 {[%emt 0:00:00]} 5. h3 {[%emt 0:00:00]} Bxf3 {[%emt 0:00:00]} 6. Qxf3 {[%emt 0:00:00]} Nf6 {[%emt 0:00:00]} 7. Bb5 {[%emt 0:01:31]} e6 {[%emt 0:00:00]} 8. O-O {[%emt 0:00:22]} Be7 {[%emt 0:00:00]} 9. c4 {[%emt 0:00:12]} O-O {[%emt 0:00:00]} 10. cxd5 {[%emt 0:00:22]} exd5 {[%emt 0:00:00]} 11. Na3 {[%emt 0:01:42]} Ne4 {[%emt 0:02:06]} 12. Rfd1 {[%emt 0:01:36]} Bf6 {[%emt 0:00:35]} 13. d4 {[%emt 0:02:57]} cxd4 {[%emt 0:00:30]} 14. exd4 {[%emt 0:06:41]} Nb4 {[%emt 0:07:59]} 15. Be2 {[%emt 0:03:47]} a6 {[%emt 0:00:00]} 16. Nc4 {[%emt 0:10:13]} Ng5 {[%emt 0:00:00]} 17. Qc3 {[%emt 0:00:00]} Nc6 {[%emt 0:02:58]} 18. Ne3 {[%emt 0:02:04]} Ne6 {[%emt 0:01:59]} 19. Nc2 {[%emt 0:16:06]} Rc8 {[%emt 0:05:36]} 20. Qe3 {[%emt 0:06:35]} Re8 {[%emt 0:00:18]} 21. Qf3 {[%emt 0:01:13]} Qb6 {[%emt 0:11:29]} 22. Qg4 {[%emt 0:07:22]} g6 {[%emt 0:04:26]} 23. h4 {[%emt 0:00:37]} h5 {[%emt 0:00:29]} 24. Qg3 {[%emt 0:00:53]} Qd8 {[%emt 0:00:28]} 25. Bxh5 {[%emt 0:06:05]} Bxh4 {[%emt 0:00:00]} 26. Qg4 {[%emt 0:00:00]} Ng7 {[%emt 0:00:21]} 27. Bxg6 {[%emt 0:01:14]} fxg6 {[%emt 0:00:00]} 28. Qxg6 {[%emt 0:00:00]} Re2 {[%emt 0:00:05]} 29. f4 {[%emt 0:01:23]} Qe8 {[%emt 0:02:15]} 30. Qd3 {[%emt 0:06:45]} Qh5 {[%emt 0:03:52]} 31. Rf1 {[%emt 0:02:35]} Qg4 {[%emt 0:00:12]} 32. Ne3 {[%emt 0:01:50]} Qh5 {[%emt 0:00:00]} 33. g4 {[%emt 0:08:15]} Rxe3 {[%emt 0:00:00]} 34. Qxe3 {[%emt 0:00:00]} Qxg4+ {[%emt 0:00:00]} 35. Kh1 {[%emt 0:00:00]} Bg3 {[%emt 0:00:00]} 36. Rf3 {[%emt 0:04:04]} Qh3+ {[%emt 0:00:00]} 37. Kg1 {[%emt 0:00:00]} Qh2+ {[%emt 0:00:00]} 38. Kf1 {[%emt 0:00:00]} Qxb2 {[%emt 0:00:06]} 39. Rd1 {[%emt 0:00:31]} Re8 {[%emt 0:06:17]} 40. Qd3 {[%emt 0:23:05]} Bh4 {[%emt 1:07:59]} 41. Rd2 {[%emt 2:00:00]} Qa1+ {[%emt 2:00:00]} 42. Kg2 {[%emt 0:00:00]} Re4 {[%emt 0:00:00]} 43. Rf1 {[%emt 0:00:00]} Re1 {[%emt 0:00:00]} 44. Rf3 {[%emt 0:00:00]} Rg1+ {[%emt 0:00:00]} 45. Kh3 {[%emt 0:00:00]} Rh1+ 46. Kg4 Rf1 {[%emt 0:00:00]} 47. Kh3 Re1 {[%emt 0:00:00]} 48. Kg2 {[%emt 0:00:00]} Rg1+ {[%emt 0:00:00]} 49. Kh3 {[%emt 0:00:00]} Rh1+ 50. Kg4 Qg1+ {[%emt 0:00:00]} 0-1

[Event "Klatovy Open-B 2024"]
[Site "Klatovy"]
[Date "2024.07.04"]
[Round "6.7"]
[White "Spackova, Martina"]
[Black "Stastny, Matej"]
[Result "0-1"]
[ECO "B15"]
[WhiteElo "1777"]
[BlackElo "1674"]
[Annotator "NA RC"]
[PlyCount "94"]
[EventDate "2024.06.21"]
[EventType "swiss"]
[EventCountry "CZE"]
[SourceTitle "playchess.com"]
[Source "ChessBase"]
[SourceQuality "1"]
[TimeControl "40/7200:0"]

1. e4 {[%emt 0:01:58]} c6 {[%emt 0:00:00]} 2. d4 {[%emt 0:00:08]} d5 {[%emt 0:00:00]} 3. Nc3 {[%emt 0:00:18]} dxe4 {[%emt 0:00:00]} 4. Nxe4 {[%emt 0:00:00]} Nf6 {[%emt 0:00:00]} 5. Nxf6+ {[%emt 0:01:40]} exf6 {[%emt 0:00:00]} 6. c4 {[%emt 0:01:55]} Bf5 {[%emt 0:01:29]} 7. Nf3 {[%emt 0:03:14]} Nd7 {[%emt 0:02:31]} 8. Nh4 {[%emt 0:07:10]} Bg6 {[%emt 0:02:29]} 9. Be2 {[%emt 0:02:15]} Qc7 {[%emt 0:05:16]} 10. Bg4 {[%emt 0:09:17]} f5 {[%emt 0:07:59]} 11. Bxf5 {[%emt 0:12:26]} Bxf5 {[%emt 0:04:32]} 12. Nxf5 {[%emt 0:00:51]} Qa5+ {[%emt 0:00:25]} 13. Bd2 {[%emt 0:05:27]} Qxf5 {[%emt 0:00:59]} 14. O-O {[%emt 0:00:00]} Be7 {[%emt 0:07:09]} 15. Re1 {[%emt 0:00:18]} Nf8 {[%emt 0:04:07]} 16. Re5 {[%emt 0:02:21]} Qd7 {[%emt 0:01:34]} 17. Bb4 {[%emt 0:03:41]} Ng6 {[%emt 0:01:17]} 18. Re3 {[%emt 0:08:05]} O-O {[%emt 0:01:09]} 19. Bxe7 {[%emt 0:01:17]} Nxe7 {[%emt 0:00:00]} 20. Qh5 {[%emt 0:00:39]} Ng6 {[%emt 0:03:54]} 21. Rh3 {[%emt 0:03:35]} h6 {[%emt 0:01:01]} 22. Qd1 {[%emt 0:00:00]} Rad8 {[%emt 0:00:37]} 23. Rd3 {[%emt 0:00:00]} Ne5 {[%emt 0:02:56]} 24. Ra3 {[%emt 0:02:35]} Qxd4 {[%emt 0:02:23]} 25. Qxd4 {[%emt 0:01:33]} Rxd4 {[%emt 0:00:00]} 26. Rxa7 {[%emt 0:00:00]} b6 {[%emt 0:00:32]} 27. b3 {[%emt 0:01:30]} Rfd8 {[%emt 0:00:26]} 28. Kf1 {[%emt 0:01:59]} b5 {[%emt 0:01:34]} 29. cxb5 {[%emt 0:04:22]} cxb5 {[%emt 0:00:00]} 30. a4 {[%emt 0:02:12]} bxa4 {[%emt 0:03:16]} 31. bxa4 {[%emt 0:00:00]} Rd1+ {[%emt 0:01:26]} 32. Rxd1 {[%emt 0:00:00]} Rxd1+ {[%emt 0:00:00]} 33. Ke2 {[%emt 0:00:00]} Ra1 {[%emt 0:00:33]} 34. a5 {[%emt 0:00:13]} Ra3 {[%emt 0:00:37]} 35. a6 {[%emt 0:02:08]} Kf8 {[%emt 0:00:46]} 36. Ra8+ {[%emt 0:00:14]} Ke7 {[%emt 0:00:00]} 37. a7 {[%emt 0:00:11]} Nc6 {[%emt 0:00:09]} 38. Rg8 {[%emt 0:00:00]} Rxa7 {[%emt 0:00:43]} 39. Rxg7 {[%emt 0:00:00]} Kf6 {[%emt 0:00:31]} 40. Rg8 {[%emt 0:02:30]} Ra1 {[%emt 0:02:17]} 41. h4 {[%emt 2:03:58]} Nd4+ {[%emt 2:01:05]} 42. Kd3 {[%emt 0:00:30]} Nf5 {[%emt 0:00:29]} 43. h5 {[%emt 0:01:37]} Ra2 {[%emt 0:00:24]} 44. f3 {[%emt 0:01:36]} Nh4 {[%emt 0:00:11]} 45. g4 {[%emt 0:02:21]} Ra3+ {[%emt 0:01:11]} 46. Ke4 {[%emt 0:07:13]} Nxf3 {[%emt 0:01:04]} 47. Kf4 {[%emt 0:03:31]} Ng5 {[%emt 0:00:39]} 0-1

[Event "Klatovy Open-B 2024"]
[Site "Klatovy"]
[Date "2024.07.04"]
[Round "6.8"]
[White "Svejdar, Pavel"]
[Black "Vratny, Vojtech"]
[Result "1/2-1/2"]
[ECO "B13"]
[WhiteElo "1721"]
[BlackElo "1564"]
[Annotator "NA RC"]
[PlyCount "78"]
[EventDate "2024.06.21"]
[EventType "swiss"]
[EventCountry "CZE"]
[SourceTitle "playchess.com"]
[Source "ChessBase"]
[SourceQuality "1"]
[TimeControl "40/7200:0"]

1. e4 {[%emt 0:00:00]} c6 {[%emt 0:00:00]} 2. Nf3 {[%emt 0:00:00]} d5 {[%emt 0:00:00]} 3. exd5 {[%emt 0:00:00]} cxd5 {[%emt 0:00:00]} 4. d4 {[%emt 0:00:00]} Nf6 {[%emt 0:00:00]} 5. Nc3 {[%emt 0:05:40]} Bg4 {[%emt 0:00:00]} 6. Be2 {[%emt 0:04:34]} e6 {[%emt 0:00:11]} 7. Ne5 {[%emt 0:06:43]} Bxe2 {[%emt 0:04:13]} 8. Qxe2 {[%emt 0:00:00]} Bd6 {[%emt 0:01:13]} 9. Qb5+ {[%emt 0:08:19]} Nbd7 {[%emt 0:01:16]} 10. Bg5 {[%emt 0:04:25]} a6 {[%emt 0:01:00]} 11. Qe2 {[%emt 0:04:42]} h6 {[%emt 0:01:02]} 12. Bh4 {[%emt 0:02:22]} Qc7 {[%emt 0:01:13]} 13. Nxd7 {[%emt 0:05:55]} Nxd7 {[%emt 0:00:00]} 14. Nxd5 {[%emt 0:00:00]} Qc6 {[%emt 0:02:02]} 15. Ne3 {[%emt 0:05:56]} O-O {[%emt 0:00:31]} 16. O-O {[%emt 0:00:00]} b5 {[%emt 0:01:43]} 17. a3 {[%emt 0:03:30]} Rac8 {[%emt 0:01:45]} 18. Rfd1 {[%emt 0:02:04]} Nb6 {[%emt 0:00:51]} 19. c3 {[%emt 0:03:05]} Nd5 {[%emt 0:01:07]} 20. Qf3 {[%emt 0:05:26]} Qc7 {[%emt 0:03:28]} 21. Bg3 {[%emt 0:04:51]} Bxg3 {[%emt 0:02:42]} 22. hxg3 {[%emt 0:00:00]} Nxe3 {[%emt 0:00:56]} 23. Qxe3 {[%emt 0:00:00]} Qc4 {[%emt 0:00:43]} 24. Re1 {[%emt 0:02:37]} a5 {[%emt 0:02:17]} 25. Qd2 {[%emt 0:06:16]} Rfd8 {[%emt 0:03:36]} 26. Re5 {[%emt 0:03:40]} f6 {[%emt 0:03:42]} 27. Re4 {[%emt 0:02:40]} Rc6 {[%emt 0:02:04]} 28. Rae1 {[%emt 0:03:03]} Rcd6 {[%emt 0:02:16]} 29. Qe2 {[%emt 0:03:54]} Qxe2 {[%emt 0:00:32]} 30. R1xe2 {[%emt 0:00:00]} Kf7 {[%emt 0:00:41]} 31. f4 {[%emt 0:00:13]} g5 {[%emt 0:03:15]} 32. Kf2 {[%emt 0:00:48]} Re8 {[%emt 0:01:13]} 33. Kf3 {[%emt 0:02:22]} Kg6 {[%emt 0:01:04]} 34. Re1 {[%emt 0:01:56]} g4+ {[%emt 0:02:25]} 35. Kf2 {[%emt 0:00:43]} Kf5 {[%emt 0:00:37]} 36. Ke3 {[%emt 0:07:14]} Rh8 {[%emt 0:02:32]} 37. b3 {[%emt 0:00:18]} Rc8 {[%emt 0:00:24]} 38. Kd2 {[%emt 0:00:41]} Rdc6 {[%emt 0:00:32]} 39. R4e3 {[%emt 0:00:00]} h5 {[%emt 0:01:31]} 1/2-1/2

[Event "Klatovy Open-B 2024"]
[Site "Klatovy"]
[Date "2024.07.04"]
[Round "6.9"]
[White "Brychta, David"]
[Black "Mojzisova, Barbora"]
[Result "1/2-1/2"]
[ECO "A22"]
[WhiteElo "2124"]
[BlackElo "1535"]
[Annotator "NA RC"]
[PlyCount "76"]
[EventDate "2024.06.21"]
[EventType "swiss"]
[EventCountry "CZE"]
[SourceTitle "playchess.com"]
[Source "ChessBase"]
[SourceQuality "1"]
[TimeControl "40/7200:0"]

1. c4 {[%emt 0:00:00]} e5 {[%emt 0:00:00]} 2. g3 {[%emt 0:00:00]} Nf6 {[%emt 0:00:00]} 3. Bg2 {[%emt 0:00:00]} d5 {[%emt 0:00:00]} 4. cxd5 {[%emt 0:00:00]} Nxd5 {[%emt 0:00:00]} 5. Nc3 {[%emt 0:00:00]} Be6 {[%emt 0:00:00]} 6. d3 {[%emt 0:00:00]} Nc6 {[%emt 0:00:18]} 7. Bd2 {[%emt 0:00:00]} Bc5 {[%emt 0:04:54]} 8. Nf3 {[%emt 0:00:00]} f6 {[%emt 0:02:17]} 9. O-O {[%emt 0:00:00]} Qd7 {[%emt 0:00:15]} 10. a3 {[%emt 0:00:00]} Nxc3 {[%emt 0:01:19]} 11. Bxc3 {[%emt 0:00:00]} Bh3 {[%emt 0:00:15]} 12. Qc2 {[%emt 0:00:00]} Bxg2 {[%emt 0:00:49]} 13. Kxg2 {[%emt 0:00:00]} Bb6 {[%emt 0:00:39]} 14. Rfd1 {[%emt 0:00:20]} O-O {[%emt 0:02:14]} 15. b4 {[%emt 0:00:41]} Kh8 {[%emt 0:03:43]} 16. Qb2 {[%emt 0:02:56]} Nd4 {[%emt 0:03:51]} 17. Bxd4 {[%emt 0:07:02]} Bxd4 {[%emt 0:00:07]} 18. Nxd4 {[%emt 0:00:05]} Qxd4 {[%emt 0:00:58]} 19. Qxd4 {[%emt 0:01:26]} exd4 {[%emt 0:00:00]} 20. Rac1 {[%emt 0:02:42]} Rac8 {[%emt 0:01:10]} 21. Rc4 {[%emt 0:00:00]} Rfd8 {[%emt 0:00:00]} 22. Rdc1 {[%emt 0:00:00]} Rd7 {[%emt 0:00:00]} 23. a4 {[%emt 0:00:20]} Kg8 {[%emt 0:00:07]} 24. Kf3 {[%emt 0:00:00]} Kf7 {[%emt 0:00:31]} 25. Ke4 {[%emt 0:00:58]} Re8+ {[%emt 0:00:07]} 26. Kf3 {[%emt 0:01:52]} Ree7 {[%emt 0:00:02]} 27. R1c2 {[%emt 0:00:16]} h6 {[%emt 0:01:35]} 28. b5 {[%emt 0:01:01]} b6 {[%emt 0:02:19]} 29. Rc6 {[%emt 0:08:44]} h5 {[%emt 0:03:15]} 30. h4 {[%emt 0:00:02]} Ke8 {[%emt 0:01:02]} 31. Kg2 {[%emt 0:01:26]} Kd8 {[%emt 0:00:11]} 32. Kf1 {[%emt 0:00:00]} Re5 {[%emt 0:02:06]} 33. R2c4 {[%emt 0:01:43]} Kc8 {[%emt 0:02:47]} 34. Rc2 {[%emt 0:22:13]} Rde7 {[%emt 0:01:55]} 35. R6c4 {[%emt 0:00:53]} Rd7 {[%emt 0:00:44]} 36. Rc6 {[%emt 0:00:00]} Rde7 {[%emt 0:01:04]} 37. R6c4 {[%emt 0:00:00]} Rd7 {[%emt 0:00:33]} 38. Rc6 {[%emt 0:15:26]} Rde7 {[%emt 0:00:08]} 1/2-1/2

[Event "Klatovy Open-B 2024"]
[Site "Klatovy"]
[Date "2024.07.04"]
[Round "6.10"]
[White "Kasik, Denis"]
[Black "Koupil, Stepan"]
[Result "1/2-1/2"]
[ECO "C50"]
[WhiteElo "1596"]
[BlackElo "1685"]
[Annotator "NA RC"]
[PlyCount "62"]
[EventDate "2024.06.21"]
[EventType "swiss"]
[EventCountry "CZE"]
[SourceTitle "playchess.com"]
[Source "ChessBase"]
[SourceQuality "1"]
[TimeControl "40/7200:0"]

1. e4 {[%emt 0:00:00]} e5 {[%emt 0:00:00]} 2. Nf3 {[%emt 0:00:00]} Nf6 {[%emt 0:00:00]} 3. Nc3 {[%emt 0:00:00]} Nc6 {[%emt 0:00:00]} 4. Bc4 {[%emt 0:00:00]} Bc5 {[%emt 0:00:00]} 5. d3 {[%emt 0:00:00]} d6 {[%emt 0:00:00]} 6. h3 {[%emt 0:00:00]} Be6 {[%emt 0:00:00]} 7. Bxe6 {[%emt 0:01:11]} fxe6 {[%emt 0:00:00]} 8. O-O {[%emt 0:01:41]} Qd7 {[%emt 0:00:00]} 9. Na4 {[%emt 0:02:25]} Bb6 {[%emt 0:00:00]} 10. Nxb6 {[%emt 0:02:25]} axb6 {[%emt 0:00:00]} 11. Re1 {[%emt 0:00:00]} h6 {[%emt 0:00:21]} 12. c3 {[%emt 0:04:27]} O-O {[%emt 0:02:31]} 13. d4 {[%emt 0:01:25]} exd4 {[%emt 0:00:00]} 14. cxd4 {[%emt 0:03:49]} d5 {[%emt 0:00:32]} 15. exd5 {[%emt 0:01:31]} Nxd5 {[%emt 0:00:57]} 16. Ne5 {[%emt 0:11:45]} Nxe5 {[%emt 0:01:36]} 17. Rxe5 {[%emt 0:05:43]} Rf6 {[%emt 0:00:44]} 18. Re2 {[%emt 0:13:38]} Raf8 {[%emt 0:09:10]} 19. Bd2 {[%emt 0:02:26]} Nf4 {[%emt 0:09:07]} 20. Bxf4 {[%emt 0:01:51]} Rxf4 {[%emt 0:00:00]} 21. Qb3 {[%emt 0:06:32]} R8f6 {[%emt 0:02:51]} 22. Rae1 {[%emt 0:12:49]} Qxd4 {[%emt 0:02:43]} 23. Rd1 {[%emt 0:03:41]} Qc4 {[%emt 0:02:36]} 24. Qxc4 {[%emt 0:01:08]} Rxc4 {[%emt 0:00:00]} 25. Kf1 {[%emt 0:04:51]} Kf7 {[%emt 0:03:16]} 26. Rd7+ {[%emt 0:02:16]} Kg6 {[%emt 0:00:00]} 27. Re7 {[%emt 0:02:10]} Rc1+ {[%emt 0:01:47]} 28. Re1 {[%emt 0:00:07]} Rc6 {[%emt 0:00:44]} 29. Re3 {[%emt 0:03:38]} h5 {[%emt 0:00:00]} 30. Rg3+ {[%emt 0:03:20]} Kh6 {[%emt 0:00:13]} 31. Rc3 {[%emt 0:01:52]} Rxc3 {[%emt 1:20:52]} 1/2-1/2